[Event "WCCC U10 2019"]
[Site "Weifang"]
[Date "2019.08.24"]
[Round "4.10"]
[White "Zhaslanuly, Alziyad"]
[Black "Lu, Miaoyi"]
[Result "1/2-1/2"]
[ECO "B13"]
[WhiteElo "1514"]
[BlackElo "1950"]
[Annotator "NA"]
[PlyCount "149"]
[EventDate "2019.08.21"]
[EventType "swiss"]
[EventCountry "CHN"]
[SourceTitle "playchess.com"]
[Source "ChessBase"]
[SourceQuality "1"]
[TimeControl "40/5400+30:1800+30"]

1. e4 {[%emt 0:00:00]} c6 {[%emt 0:00:00]} 2. d4 {[%emt 0:00:27]} d5 {[%emt 0:00:00]} 3. exd5 {[%emt 0:00:31]} cxd5 {[%emt 0:00:00]} 4. Bd3 {[%emt 0:01:07]} Nc6 {[%emt 0:00:00]} 5. c3 {[%emt 0:00:41]} Nf6 {[%emt 0:00:11]} 6. Bf4 {[%emt 0:00:32]} Bg4 {[%emt 0:01:01]} 7. Qb3 {[%emt 0:01:23]} Qd7 {[%emt 0:02:37]} 8. Nd2 {[%emt 0:00:48]} e6 {[%emt 0:00:51]} 9. Ngf3 {[%emt 0:01:11]} Be7 {[%emt 0:13:46]} 10. O-O {[%emt 0:13:21]} O-O {[%emt 0:00:45]} 11. Rfe1 {[%emt 0:03:31]} Bh5 {[%emt 0:02:55]} 12. h3 {[%emt 0:06:29]} Bg6 {[%emt 0:03:09]} 13. Bxg6 {[%emt 0:01:26]} hxg6 {[%emt 0:00:13]} 14. Ne5 {[%emt 0:00:22]} Nxe5 {[%emt 0:08:54]} 15. Bxe5 {[%emt 0:00:47]} Bd6 {[%emt 0:08:21]} 16. Nf1 $11 {[%emt 0:23:16]} Bxe5 {[%emt 0:05:27]} 17. dxe5 {[%emt 0:00:36]} Ne4 {[%emt 0:01:01]} 18. Rad1 {[%emt 0:01:49]} Qc7 {[%emt 0:04:34]} 19. f3 {[%emt 0:03:54]} Nc5 {[%emt 0:03:34]} 20. Qc2 {[%emt 0:00:50]} Rac8 {[%emt 0:07:14]} 21. Rd4 {[%emt 0:06:09]} b5 {[%emt 0:04:53]} 22. Qf2 {[%emt 0:01:54]} Qb6 {[%emt 0:02:54]} 23. Re2 {[%emt 0:01:28]} a5 {[%emt 0:00:46]} 24. Nd2 {[%emt 0:05:29]} Rc6 {[%emt 0:04:21]} 25. b3 {[%emt 0:12:05]} Rfc8 {[%emt 0:05:29]} 26. c4 {[%emt 0:00:19]} dxc4 {[%emt 0:02:31]} 27. bxc4 {[%emt 0:00:28]} b4 {[%emt 0:01:00]} 28. Nb3 {[%emt 0:03:41]} a4 {[%emt 0:04:03]} 29. Nxc5 {[%emt 0:01:59]} Rxc5 {[%emt 0:00:31]} 30. Kh2 {[%emt 0:00:39]} Qc7 {[%emt 0:01:42]} 31. Rb2 {[%emt 0:00:40]} Rxc4 {[%emt 0:04:20]} 32. Rxb4 {[%emt 0:00:08]} Qxe5+ {[%emt 0:03:28]} 33. f4 {[%emt 0:00:10]} Qxd4 {[%emt 0:01:12]} 34. Qxd4 {[%emt 0:00:08]} Rxd4 {[%emt 0:00:03]} 35. Rxd4 {[%emt 0:00:11]} Ra8 {[%emt 0:01:09]} 36. a3 {[%emt 0:00:19]} Kf8 {[%emt 0:00:30]} 37. Rd7 {[%emt 0:00:44]} Ke8 {[%emt 0:01:05]} 38. Rc7 {[%emt 0:01:07]} Ra5 {[%emt 0:02:32]} 39. Rb7 {[%emt 0:00:56]} Rf5 {[%emt 0:01:20]} 40. Rb4 {[%emt 0:00:05]} Ra5 {[%emt 0:00:28]} 41. Rb7 {[%emt 0:30:59]} Kf8 {[%emt 0:09:44]} 42. g4 {[%emt 0:00:00]} f6 {[%emt 0:07:41]} 43. Rb6 {[%emt 0:00:00]} e5 {[%emt 0:02:27]} 44. fxe5 {[%emt 0:00:00]} Rxe5 {[%emt 0:00:16]} 45. Rb4 {[%emt 0:00:00]} Re2+ {[%emt 0:05:14]} 46. Kg1 {[%emt 0:00:00]} Re3 {[%emt 0:00:08]} 47. Rxa4 {[%emt 0:00:00]} Rxh3 {[%emt 0:00:04]} 48. Kg2 {[%emt 0:00:00]} Rc3 {[%emt 0:00:09]} 49. Ra5 {[%emt 0:00:00]} Kf7 {[%emt 0:01:17]} 50. Ra7+ {[%emt 0:00:00]} Kg8 {[%emt 0:01:25]} 51. Ra8+ {[%emt 0:00:00]} Kh7 {[%emt 0:00:33]} 52. Ra5 {[%emt 0:00:00]} Kh6 {[%emt 0:01:15]} 53. Kf2 {[%emt 0:00:00]} f5 {[%emt 0:02:20]} 54. gxf5 {[%emt 0:00:00]} gxf5 {[%emt 0:00:14]} 55. Rxf5 {[%emt 0:00:00]} Rxa3 {[%emt 0:00:06]} 56. Rc5 {[%emt 0:00:00]} g5 {[%emt 0:00:28]} 57. Rc6+ {[%emt 0:02:02]} Kh5 {[%emt 0:00:03]} 58. Rc4 {[%emt 0:00:11]} g4 {[%emt 0:00:20]} 59. Rc8 {[%emt 0:01:00]} Kh4 {[%emt 0:00:42]} 60. Rh8+ {[%emt 0:00:05]} Kg5 {[%emt 0:00:09]} 61. Rg8+ {[%emt 0:00:04]} Kf4 {[%emt 0:00:42]} 62. Rf8+ {[%emt 0:00:05]} Ke4 {[%emt 0:00:14]} 63. Re8+ {[%emt 0:00:06]} Kf5 {[%emt 0:00:19]} 64. Rf8+ {[%emt 0:00:04]} Ke5 {[%emt 0:00:22]} 65. Re8+ {[%emt 0:00:09]} Kf6 {[%emt 0:00:05]} 66. Rf8+ {[%emt 0:00:06]} Kg6 {[%emt 0:00:19]} 67. Rg8+ {[%emt 0:00:07]} Kf5 {[%emt 0:00:22]} 68. Rf8+ {[%emt 0:00:03]} Ke5 {[%emt 0:00:09]} 69. Re8+ {[%emt 0:00:03]} Kf6 {[%emt 0:00:56]} 70. Rf8+ {[%emt 0:00:04]} Kg7 {[%emt 0:00:17]} 71. Rf4 {[%emt 0:00:04]} g3+ {[%emt 0:00:05]} 72. Kg2 {[%emt 0:00:02]} Kh6 {[%emt 0:00:06]} 73. Rg4 {[%emt 0:00:05]} Kh5 {[%emt 0:00:04]} 74. Rxg3 {[%emt 0:00:05]} Rxg3+ {[%emt 0:00:04]} 75. Kxg3 {[%emt 0:00:11]} 1/2-1/2

[Event "WCCC U10 2019"]
[Site "Weifang"]
[Date "2019.08.25"]
[Round "5.1"]
[White "Materia, Marco"]
[Black "Kong, Xiangrui"]
[Result "1-0"]
[ECO "D35"]
[WhiteElo "2236"]
[BlackElo "1889"]
[Annotator "ChessBase"]
[PlyCount "103"]
[EventDate "2019.08.21"]
[EventType "swiss"]
[EventCountry "CHN"]
[SourceTitle "playchess.com"]
[Source "ChessBase"]
[SourceQuality "1"]
[TimeControl "40/5400+30:1800+30"]

1. d4 {[%emt 0:00:00]} d5 {[%emt 0:00:00]} 2. c4 {[%emt 0:00:00]} e6 {[%emt 0:00:00]} 3. Nc3 {[%emt 0:00:00]} Nf6 {[%emt 0:00:00]} 4. cxd5 {[%emt 0:00:00]} exd5 {[%emt 0:00:00]} 5. Bg5 {[%emt 0:00:00]} c6 {[%emt 0:00:00]} 6. e3 {[%emt 0:00:02]} Be7 {[%emt 0:00:00]} 7. Bd3 {[%emt 0:00:08]} Nbd7 {[%emt 0:00:00]} 8. Nge2 {[%emt 0:00:05]} h6 {[%emt 0:00:03]} 9. Bh4 {[%emt 0:00:06]} Nh5 {[%emt 0:00:06]} 10. Bxe7 {[%emt 0:00:06]} Qxe7 {[%emt 0:00:03]} 11. Qd2 {[%emt 0:00:29]} Nb6 {[%emt 0:00:16]} 12. f3 {[%emt 0:02:01]} Be6 {[%emt 0:01:12]} 13. b3 {[%emt 0:03:48]} O-O {[%emt 0:03:21]} 14. g4 {[%emt 0:02:01]} Qh4+ {[%emt 0:01:23]} 15. Kd1 {[%emt 0:00:07]} Nf6 {[%emt 0:00:49]} 16. Qe1 {[%emt 0:00:49]} Qxe1+ {[%emt 0:03:02]} 17. Kxe1 {[%emt 0:00:41]} a5 {[%emt 0:01:49]} 18. h4 {[%emt 0:02:38]} Nbd7 {[%emt 0:05:24]} 19. Nf4 {[%emt 0:06:16]} Nh7 {[%emt 0:03:59]} 20. Ke2 {[%emt 0:09:20]} Rfe8 {[%emt 0:02:51]} 21. Rag1 {[%emt 0:02:36]} Nhf8 {[%emt 0:13:08]} 22. g5 {[%emt 0:02:32]} Kh8 {[%emt 0:01:06]} 23. Rh2 {[%emt 0:03:09]} Rac8 {[%emt 0:10:56]} 24. Rhg2 {[%emt 0:05:21]} h5 {[%emt 0:01:36]} 25. Nxh5 {[%emt 0:03:10]} c5 {[%emt 0:02:46]} 26. Kd2 {[%emt 0:01:11]} Nb8 {[%emt 0:03:18]} 27. dxc5 {[%emt 0:02:19]} Rxc5 {[%emt 0:01:18]} 28. Nf4 {[%emt 0:01:03]} Nfd7 {[%emt 0:01:26]} 29. Nfe2 {[%emt 0:04:30]} Ne5 {[%emt 0:02:23]} 30. Nd4 {[%emt 0:01:28]} Nxd3 {[%emt 0:01:13]} 31. Kxd3 {[%emt 0:00:08]} Na6 {[%emt 0:01:07]} 32. Kd2 {[%emt 0:04:42]} Bd7 {[%emt 0:01:49]} 33. Nce2 {[%emt 0:05:46]} b5 {[%emt 0:05:19]} 34. Rc1 {[%emt 0:00:57]} Rxc1 {[%emt 0:04:09]} 35. Nxc1 {[%emt 0:00:07]} Nc5 {[%emt 0:01:44]} 36. Nce2 {[%emt 0:02:05]} b4 {[%emt 0:01:39]} 37. Nf4 {[%emt 0:01:12]} Be6 {[%emt 0:01:43]} 38. Rg1 {[%emt 0:01:07]} a4 {[%emt 0:04:05]} 39. Rc1 {[%emt 0:00:49]} Nd7 {[%emt 0:00:31]} 40. bxa4 {[%emt 0:07:34]} Nb6 {[%emt 0:05:13]} 41. Rc7 {[%emt 0:31:27]} Nxa4 {[%emt 0:33:07]} 42. g6 {[%emt 0:00:34]} Kg8 {[%emt 0:01:21]} 43. Ndxe6 {[%emt 0:00:20]} fxe6 {[%emt 0:00:05]} 44. Nxe6 {[%emt 0:00:08]} Nb6 {[%emt 0:00:07]} 45. Nxg7 {[%emt 0:04:18]} Ra8 {[%emt 0:01:07]} 46. Nh5 {[%emt 0:02:15]} Nc4+ {[%emt 0:02:04]} 47. Ke1 {[%emt 0:00:59]} Rf8 {[%emt 0:00:39]} 48. Rg7+ {[%emt 0:00:06]} Kh8 {[%emt 0:00:04]} 49. Rf7 {[%emt 0:00:12]} Re8 {[%emt 0:00:16]} 50. Rh7+ {[%emt 0:00:08]} Kg8 {[%emt 0:00:04]} 51. Nf6+ {[%emt 0:00:05]} Kf8 {[%emt 0:00:03]} 52. Rf7# {[%emt 0:00:06]} 1-0

[Event "WCCC U10 2019"]
[Site "Weifang"]
[Date "2019.08.25"]
[Round "5.2"]
[White "Mamedov, Edgar"]
[Black "Ilamparthi A R"]
[Result "1/2-1/2"]
[ECO "B50"]
[WhiteElo "1714"]
[BlackElo "1984"]
[Annotator "NA"]
[PlyCount "212"]
[EventDate "2019.08.21"]
[EventType "swiss"]
[EventCountry "CHN"]
[SourceTitle "playchess.com"]
[Source "ChessBase"]
[SourceQuality "1"]
[TimeControl "40/5400+30:1800+30"]

1. e4 {[%emt 0:00:00]} c5 {[%emt 0:00:00]} 2. Nf3 {[%emt 0:00:10]} d6 {[%emt 0:00:00]} 3. c3 {[%emt 0:00:14]} Nf6 {[%emt 0:00:00]} 4. h3 {[%emt 0:00:06]} g6 {[%emt 0:00:00]} 5. Bd3 {[%emt 0:00:06]} Bg7 {[%emt 0:00:15]} 6. Bc2 {[%emt 0:00:47]} O-O {[%emt 0:00:19]} 7. O-O {[%emt 0:00:08]} Nc6 {[%emt 0:00:24]} 8. d4 {[%emt 0:00:07]} e5 {[%emt 0:00:45]} 9. Re1 {[%emt 0:17:12]} (9. d5 $14 Ne7 10. c4) 9... Bd7 {[%emt 0:07:07] B50: Sicilian: 2...d6, Miscellaneous} (9... exd4 $15 10. cxd4 cxd4) 10. dxc5 {[%emt 0:20:33]} dxc5 {[%emt 0:00:16]} 11. Qd6 $146 {[%emt 0:00:07]} ({Predecessor:} 11. Na3 Qe7 12. Nc4 Rad8 {0-1 (43) Espinosa Flores,R (2414)-Guseinov,G (2513) Bled 2002}) 11... Qb6 {[%emt 0:03:02]} 12. Qd1 {[%emt 0:06:33]} Rad8 {[%emt 0:02:27]} 13. Qe2 {[%emt 0:00:52]} Nh5 {[%emt 0:09:46]} 14. Na3 {[%emt 0:04:06]} Nf4 {[%emt 0:11:34]} 15. Qf1 {[%emt 0:09:57]} Na5 {[%emt 0:10:44]} 16. Rb1 {[%emt 0:03:22]} Be6 {[%emt 0:10:52]} 17. b4 {[%emt 0:08:42]} cxb4 {[%emt 0:01:42]} 18. cxb4 {[%emt 0:00:07]} Nc6 {[%emt 0:00:15]} 19. Be3 {[%emt 0:00:26]} Qc7 {[%emt 0:01:15]} 20. Nb5 {[%emt 0:02:25]} Qc8 {[%emt 0:01:02]} 21. Bc5 {[%emt 0:01:34]} Nxh3+ {[%emt 0:02:17]} 22. Kh2 $17 {[%emt 0:03:05]} Nf4 {[%emt 0:00:11]} 23. Bb3 {[%emt 0:02:16]} Rfe8 {[%emt 0:13:33]} 24. Nd6 {[%emt 0:03:47]} Rxd6 {[%emt 0:00:12]} 25. Bxd6 {[%emt 0:00:05]} Qd8 {[%emt 0:00:44]} 26. Rbd1 {[%emt 0:03:07]} Qf6 {[%emt 0:01:40]} 27. Bxe6 {[%emt 0:01:43]} Rxe6 {[%emt 0:00:06]} 28. b5 {[%emt 0:00:35]} Rxd6 {[%emt 0:01:36]} 29. Rxd6 {[%emt 0:00:13]} Qxd6 {[%emt 0:00:05]} 30. bxc6 {[%emt 0:00:05]} Qxc6 {[%emt 0:00:07]} 31. g3 {[%emt 0:00:34]} Ne6 {[%emt 0:02:09]} 32. Qd3 {[%emt 0:00:53]} Bf6 {[%emt 0:00:07]} 33. Kg1 {[%emt 0:01:25]} Kg7 {[%emt 0:00:11]} 34. Qd5 {[%emt 0:00:39]} Qc7 {[%emt 0:01:15]} 35. Rd1 {[%emt 0:01:49]} b6 {[%emt 0:01:26]} 36. a4 {[%emt 0:01:33]} Qc2 {[%emt 0:01:36]} 37. Nxe5 {[%emt 0:01:29]} Ng5 {[%emt 0:00:46]} 38. Ng4 {[%emt 0:01:07]} Nxe4 {[%emt 0:01:39]} 39. Re1 {[%emt 0:00:15]} Nc3 {[%emt 0:00:57]} 40. Qf3 {[%emt 0:01:02]} Qf5 {[%emt 0:03:03]} 41. Qxf5 {[%emt 0:34:06]} gxf5 {[%emt 0:30:02]} 42. Nxf6 {[%emt 0:00:00]} Kxf6 {[%emt 0:00:00]} 43. a5 {[%emt 0:00:00]} bxa5 {[%emt 0:00:00]} 44. Ra1 {[%emt 0:00:00]} Nd5 {[%emt 0:00:00]} 45. Rxa5 {[%emt 0:00:00]} Nc7 {[%emt 0:00:00]} 46. Rxa7 {[%emt 0:00:00]} Ne6 {[%emt 0:00:00]} 47. Ra5 {[%emt 0:00:00]} h5 {[%emt 0:00:00]} 48. Kg2 {[%emt 0:00:00]} f4 {[%emt 0:00:00]} 49. Rxh5 {[%emt 0:00:00]} fxg3 {[%emt 0:00:00]} 50. Kxg3 {[%emt 0:00:00]} Kg6 {[%emt 0:00:00]} 51. Ra5 {[%emt 0:00:00]} Nd4 {[%emt 0:00:00]} 52. Kg4 {[%emt 0:00:00]} f5+ {[%emt 0:00:00]} 53. Kf4 {[%emt 0:00:00]} Kf6 {[%emt 0:00:00]} 54. Ra6+ {[%emt 0:00:00]} Ne6+ {[%emt 0:00:00]} 55. Kg3 {[%emt 0:00:00]} Ke5 {[%emt 0:00:00]} 56. Ra5+ {[%emt 0:00:00]} Kf6 {[%emt 0:00:00]} 57. Kh4 {[%emt 0:00:00]} Kg6 {[%emt 0:00:00]} 58. Ra6 {[%emt 0:00:00]} Kf6 {[%emt 0:00:00]} 59. Kh5 {[%emt 0:00:00]} Kf7 {[%emt 0:00:00]} 60. Kh6 {[%emt 0:00:00]} Kf6 {[%emt 0:00:00]} 61. Kh7 {[%emt 0:00:00]} Kf7 {[%emt 0:00:00]} 62. Rb6 {[%emt 0:00:00]} Nf8+ {[%emt 0:00:00]} 63. Kh6 {[%emt 0:00:00]} Ne6 {[%emt 0:00:00]} 64. Kh5 {[%emt 0:00:00]} Kf6 {[%emt 0:00:00]} 65. Kh4 {[%emt 0:00:23]} Kf7 {[%emt 0:00:00]} 66. Kg3 {[%emt 0:00:22]} Kf6 {[%emt 0:00:00]} 67. Kf3 {[%emt 0:00:26]} Kf7 {[%emt 0:00:00]} 68. Ke3 {[%emt 0:00:18]} Ke7 {[%emt 0:00:00]} 69. Kd3 {[%emt 0:00:36]} Kf6 {[%emt 0:00:00]} 70. Kd2 {[%emt 0:00:33]} Kf7 {[%emt 0:00:00]} 71. Kc3 {[%emt 0:00:26]} Kf6 {[%emt 0:00:00]} 72. Kd3 {[%emt 0:00:06]} Ke5 {[%emt 0:00:00]} 73. Kc4 {[%emt 0:01:55]} Ng5 {[%emt 0:00:00]} 74. Kd3 {[%emt 0:00:49]} Ne6 {[%emt 0:00:00]} 75. Ke3 {[%emt 0:00:45]} Kf6 {[%emt 0:00:00]} 76. Rb8 {[%emt 0:00:34]} Kf7 {[%emt 0:00:00]} 77. Ra8 {[%emt 0:00:42]} Kf6 {[%emt 0:00:00]} 78. Ra5 {[%emt 0:00:09]} Kg6 {[%emt 0:00:00]} 79. Kd3 {[%emt 0:00:31]} Kg5 {[%emt 0:00:00]} 80. Ke3 {[%emt 0:01:35]} Kf6 {[%emt 0:00:00]} 81. Ra7 {[%emt 0:00:37]} Kg6 {[%emt 0:00:00]} 82. Kd3 {[%emt 0:01:11]} Kf6 {[%emt 0:00:00]} 83. Ra5 {[%emt 0:00:23]} Kg6 {[%emt 0:00:00]} 84. Kc4 {[%emt 0:00:31]} Kg5 {[%emt 0:00:00]} 85. Kd5 {[%emt 0:01:36]} Nf4+ {[%emt 0:00:00]} 86. Ke5 {[%emt 0:01:30]} Ng6+ {[%emt 0:00:00]} 87. Ke6 {[%emt 0:00:07]} Nf4+ {[%emt 0:00:00]} 88. Kf7 {[%emt 0:00:20]} Nd3 {[%emt 0:00:00]} 89. Ke6 {[%emt 0:00:52]} Nf4+ {[%emt 0:00:00]} 90. Kd6 {[%emt 0:00:11]} Nd3 {[%emt 0:00:00]} 91. Ra2 {[%emt 0:00:27]} Kf4 {[%emt 0:00:00]} 92. Rd2 {[%emt 0:00:17]} Ne1 {[%emt 0:00:00]} 93. Ke6 {[%emt 0:00:15]} Nf3 {[%emt 0:00:00]} 94. Rd5 {[%emt 0:00:43]} Ng5+ {[%emt 0:00:00]} 95. Kf6 {[%emt 0:00:22]} Ne4+ {[%emt 0:00:00]} 96. Kg6 {[%emt 0:00:04]} Nxf2 {[%emt 0:00:00]} 97. Rxf5+ {[%emt 0:00:06]} Ke3 {[%emt 0:00:00]} 98. Kg5 {[%emt 0:00:16]} Ne4+ {[%emt 0:00:00]} 99. Kg4 {[%emt 0:00:15]} Nf2+ {[%emt 0:00:00]} 100. Kg3 {[%emt 0:00:03]} Ne4+ {[%emt 0:00:00]} 101. Kg2 {[%emt 0:00:03]} Ke2 {[%emt 0:00:00]} 102. Re5 {[%emt 0:00:13]} Ke3 {[%emt 0:00:00]} 103. Re8 {[%emt 0:00:06]} Kf4 {[%emt 0:00:00]} 104. Rf8+ {[%emt 0:00:21]} Ke3 {[%emt 0:00:00]} 105. Re8 {[%emt 0:00:10]} Kf4 {[%emt 0:00:00]} 106. Rxe4+ {[%emt 0:00:06]} Kxe4 {[%emt 0:00:00]} 1/2-1/2

[Event "WCCC U10 2019"]
[Site "Weifang"]
[Date "2019.08.25"]
[Round "5.3"]
[White "Wongso, Steve"]
[Black "Hvozdz, Aliaksandr"]
[Result "1-0"]
[ECO "B01"]
[WhiteElo "1765"]
[BlackElo "1699"]
[Annotator "NA"]
[PlyCount "79"]
[EventDate "2019.08.21"]
[EventType "swiss"]
[EventCountry "CHN"]
[SourceTitle "playchess.com"]
[Source "ChessBase"]
[SourceQuality "1"]
[TimeControl "40/5400+30:1800+30"]

1. e4 {[%emt 0:00:00]} d5 {[%emt 0:00:09]} 2. exd5 {[%emt 0:00:00]} Qxd5 {[%emt 0:00:19]} 3. Nf3 {[%emt 0:00:00]} Bg4 {[%emt 0:00:13]} 4. Be2 {[%emt 0:00:10]} Nc6 {[%emt 0:00:11]} 5. d4 {[%emt 0:00:16]} O-O-O {[%emt 0:00:15]} 6. Be3 {[%emt 0:00:18]} e5 {[%emt 0:01:06]} 7. c4 {[%emt 0:00:11]} Qa5+ {[%emt 0:01:19]} 8. Bd2 {[%emt 0:00:07]} Bb4 {[%emt 0:01:00]} 9. Nxe5 {[%emt 0:18:57]} Bxe2 {[%emt 0:04:34]} 10. Nxc6 {[%emt 0:00:11]} bxc6 {[%emt 0:00:15]} 11. Qxe2 {[%emt 0:00:13]} Rxd4 {[%emt 0:00:19]} 12. Nc3 {[%emt 0:02:50]} Nf6 {[%emt 0:06:51]} 13. O-O {[%emt 0:00:20]} Re8 {[%emt 0:01:49]} 14. Be3 {[%emt 0:00:23]} Rd7 {[%emt 0:12:02]} 15. Qf3 {[%emt 0:01:15]} Bxc3 {[%emt 0:03:21]} 16. bxc3 {[%emt 0:02:18]} Ne4 {[%emt 0:05:09]} 17. Rab1 {[%emt 0:01:31]} f5 {[%emt 0:06:51]} 18. Rb2 {[%emt 0:02:32]} g6 {[%emt 0:04:11]} 19. Rfb1 {[%emt 0:01:08]} Rde7 {[%emt 0:05:23]} 20. Qd1 {[%emt 0:00:51]} Nd6 {[%emt 0:00:22]} 21. Rb8+ {[%emt 0:00:09]} Kd7 {[%emt 0:00:16]} 22. c5 {[%emt 0:00:06]} Rxe3 {[%emt 0:00:36]} 23. fxe3 {[%emt 0:00:16]} Qxc5 {[%emt 0:00:12]} 24. Rxe8 {[%emt 0:00:10]} Kxe8 {[%emt 0:00:11]} 25. Rb8+ {[%emt 0:01:27]} Ke7 {[%emt 0:00:28]} 26. Qd4 {[%emt 0:01:10]} Qxd4 {[%emt 0:02:13]} 27. cxd4 {[%emt 0:00:39]} Nb5 {[%emt 0:01:34]} 28. Ra8 {[%emt 0:01:34]} Kd7 {[%emt 0:02:12]} 29. a4 {[%emt 0:00:06]} Nc3 {[%emt 0:00:34]} 30. Rxa7 {[%emt 0:00:08]} Nd5 {[%emt 0:00:57]} 31. Rb7 {[%emt 0:00:55]} Kc8 {[%emt 0:00:12]} 32. Rb3 {[%emt 0:00:08]} Nb6 {[%emt 0:00:48]} 33. a5 {[%emt 0:00:17]} Nc4 {[%emt 0:00:20]} 34. a6 {[%emt 0:00:22]} Nb6 {[%emt 0:00:12]} 35. Rc3 {[%emt 0:00:24]} Kb8 {[%emt 0:01:49]} 36. Rxc6 {[%emt 0:00:07]} Nd5 {[%emt 0:00:08]} 37. Kf2 {[%emt 0:00:12]} Nb4 {[%emt 0:01:06]} 38. a7+ {[%emt 0:00:05]} Kxa7 {[%emt 0:00:16]} 39. Rxc7+ {[%emt 0:00:04]} Kb6 {[%emt 0:00:25]} 40. Rxh7 {[%emt 0:00:06]} 1-0

[Event "WCCC U10 2019"]
[Site "Weifang"]
[Date "2019.08.25"]
[Round "5.4"]
[White "Mayank Chakraborty"]
[Black "Wei, Jianzhou"]
[Result "1-0"]
[ECO "C10"]
[WhiteElo "1731"]
[BlackElo "1656"]
[Annotator "NA"]
[PlyCount "151"]
[EventDate "2019.08.21"]
[EventType "swiss"]
[EventCountry "CHN"]
[SourceTitle "playchess.com"]
[Source "ChessBase"]
[SourceQuality "1"]
[TimeControl "40/5400+30:1800+30"]

1. e4 {[%emt 0:00:00]} e6 {[%emt 0:00:00]} 2. d4 {[%emt 0:00:00]} d5 {[%emt 0:00:00]} 3. Nc3 {[%emt 0:00:00]} Nf6 {[%emt 0:00:00]} 4. Bg5 {[%emt 0:00:05]} dxe4 {[%emt 0:00:00]} 5. Nxe4 {[%emt 0:00:11]} Nbd7 {[%emt 0:00:01]} 6. Nf3 {[%emt 0:00:18]} h6 {[%emt 0:00:05]} 7. Nxf6+ {[%emt 0:00:08]} Nxf6 {[%emt 0:00:04]} 8. Bxf6 {[%emt 0:00:46]} Qxf6 {[%emt 0:00:36]} 9. Bd3 {[%emt 0:00:32]} Bd6 {[%emt 0:02:33]} 10. Qe2 {[%emt 0:00:29]} O-O {[%emt 0:04:59]} 11. O-O-O {[%emt 0:00:51]} c5 {[%emt 0:04:02]} 12. dxc5 {[%emt 0:01:37]} Bxc5 {[%emt 0:00:26]} 13. Kb1 {[%emt 0:01:01]} Qf4 {[%emt 0:09:09]} 14. g3 {[%emt 0:03:19]} Qb4 {[%emt 0:00:45]} 15. c3 {[%emt 0:01:44]} Qb6 {[%emt 0:01:09]} 16. Ne5 {[%emt 0:02:09]} Qc7 {[%emt 0:06:09]} 17. f4 {[%emt 0:01:38]} Rd8 {[%emt 0:03:04]} 18. Rhe1 {[%emt 0:04:59]} Bd7 {[%emt 0:05:53]} 19. Qe4 {[%emt 0:00:05]} f5 {[%emt 0:03:48]} 20. Qc4 {[%emt 0:00:22]} Bb6 {[%emt 0:16:21]} 21. Qb3 {[%emt 0:03:44]} Bf2 {[%emt 0:04:17]} 22. Rf1 {[%emt 0:03:35]} Qb6 {[%emt 0:01:47]} 23. Bc4 {[%emt 0:03:33]} Be8 {[%emt 0:06:21]} 24. Bxe6+ {[%emt 0:00:18]} Kh8 {[%emt 0:01:04]} 25. Qxb6 {[%emt 0:00:03]} Bxb6 {[%emt 0:01:04]} 26. Bxf5 {[%emt 0:00:21]} Kg8 {[%emt 0:00:27]} 27. Kc2 {[%emt 0:00:22]} a5 {[%emt 0:01:09]} 28. Be4 {[%emt 0:00:57]} Rab8 {[%emt 0:02:25]} 29. Rxd8 {[%emt 0:00:15]} Bxd8 {[%emt 0:00:18]} 30. Rd1 {[%emt 0:00:27]} Bf6 {[%emt 0:02:17]} 31. Rd6 {[%emt 0:02:10]} b6 {[%emt 0:03:30]} 32. Nf3 {[%emt 0:08:46]} Kf8 {[%emt 0:00:44]} 33. Rd1 {[%emt 0:00:36]} Rc8 {[%emt 0:02:03]} 34. Nd4 {[%emt 0:03:00]} Ke7 {[%emt 0:02:19]} 35. Bf5 {[%emt 0:00:28]} Rd8 {[%emt 0:00:30]} 36. Re1+ {[%emt 0:01:07]} Kf7 {[%emt 0:00:08]} 37. Nf3 {[%emt 0:01:57]} g6 {[%emt 0:00:57]} 38. Bd3 {[%emt 0:01:47]} b5 {[%emt 0:00:56]} 39. Ne5+ {[%emt 0:00:21]} Kg7 {[%emt 0:01:14]} 40. Ng4 {[%emt 0:00:10]} h5 {[%emt 0:01:56]} 41. Nxf6 {[%emt 0:30:07]} Kxf6 {[%emt 0:30:03]} 42. Re5 {[%emt 0:00:02]} Rb8 {[%emt 0:00:21]} 43. a4 {[%emt 0:04:41]} bxa4 {[%emt 0:01:28]} 44. Rxa5 {[%emt 0:00:02]} Bf7 {[%emt 0:02:34]} 45. Ra6+ {[%emt 0:00:12]} Kg7 {[%emt 0:00:10]} 46. Kc1 {[%emt 0:00:07]} Be8 {[%emt 0:01:01]} 47. Bc2 {[%emt 0:00:06]} Rd8 {[%emt 0:00:50]} 48. Bxa4 {[%emt 0:00:06]} Bf7 {[%emt 0:00:04]} 49. Bc2 {[%emt 0:00:22]} Re8 {[%emt 0:00:13]} 50. Ra7 {[%emt 0:00:45]} Kf6 {[%emt 0:00:13]} 51. Ra6+ {[%emt 0:00:32]} Kg7 {[%emt 0:00:10]} 52. Kd2 {[%emt 0:00:19]} Rd8+ {[%emt 0:00:08]} 53. Ke3 {[%emt 0:00:53]} Rb8 {[%emt 0:00:42]} 54. b4 {[%emt 0:02:40]} Re8+ {[%emt 0:00:05]} 55. Kd2 {[%emt 0:00:24]} Rd8+ {[%emt 0:00:28]} 56. Kc1 {[%emt 0:00:19]} Rc8 {[%emt 0:00:24]} 57. Kb2 {[%emt 0:00:28]} Rb8 {[%emt 0:00:14]} 58. Ra7 {[%emt 0:00:11]} Kf6 {[%emt 0:00:11]} 59. Ra6+ {[%emt 0:00:41]} Kg7 {[%emt 0:00:03]} 60. Bb3 {[%emt 0:01:02]} Be8 {[%emt 0:00:22]} 61. Ra5 {[%emt 0:01:41]} Kf6 {[%emt 0:00:16]} 62. Re5 {[%emt 0:00:08]} Bd7 {[%emt 0:00:15]} 63. Rd5 {[%emt 0:00:11]} Be8 {[%emt 0:01:04]} 64. Rd6+ {[%emt 0:00:04]} Kg7 {[%emt 0:00:14]} 65. Bc4 {[%emt 0:00:22]} Rb7 {[%emt 0:00:45]} 66. Bd3 {[%emt 0:00:13]} Bf7 {[%emt 0:01:06]} 67. b5 {[%emt 0:01:02]} Kf8 {[%emt 0:00:25]} 68. c4 {[%emt 0:00:27]} Ke7 {[%emt 0:00:28]} 69. Ra6 {[%emt 0:00:09]} Rc7 {[%emt 0:00:26]} 70. Kc3 {[%emt 0:00:34]} Kd7 {[%emt 0:01:10]} 71. b6 {[%emt 0:00:08]} Rb7 {[%emt 0:00:25]} 72. Ra7 {[%emt 0:00:11]} Kc8 {[%emt 0:00:09]} 73. Be4 {[%emt 0:00:09]} Rxb6 {[%emt 0:00:25]} 74. Rxf7 {[%emt 0:00:03]} Kd8 {[%emt 0:00:07]} 75. Rg7 {[%emt 0:00:11]} Ke8 {[%emt 0:00:04]} 76. Rxg6 {[%emt 0:00:07]} 1-0